bitfinex/quotes_SOLUSD_20241021
["timestamp","ask_amount","ask_price","bid_price","bid_amount"]
[1729518317111,20.0,163.22,163.18,15.3205]
[1729518317297,20.0,163.22,163.17,16.5476]
[1729518317607,20.0,163.18,163.17,16.5476]
[1729518317808,30.6213,163.29,163.18,6.128]
[1729518317809,20.0,163.23,163.18,6.128]
[1729518318011,20.0,163.21,163.17,31.8688]
[1729518318312,20.0,163.21,163.17,37.997]
[1729518318503,20.0,163.26,163.18,15.3204]
[1729518318716,26.1267,163.22,163.17,22.6759]
[1729518319010,20.0,163.2,163.17,16.5476]
[1729518319390,20.0,163.22,163.17,16.5476]
[1729518319588,6.1255,163.26,163.2,6.1272]
[1729518319804,20.0,163.25,163.2,21.4458]
[1729518320123,0.5447237,163.32,163.18,15.3205]
[1729518320314,0.5447237,163.32,163.28,6.5665]
[1729518320620,6.5776,163.46,163.36,6.1211]
[1729518320927,30.0,163.37,163.36,6.1214]
[1729518321508,6.1182,163.45,163.39,6.12]
[1729518321708,6.1176,163.47,163.41,6.1194]
[1729518321912,30.0,163.42,163.41,6.1194]
[1729518322221,0.6082023,163.48,163.39,6.3443]
[1729518322520,0.6082023,163.48,163.43,6.1188]
[1729518323033,0.6082023,163.48,163.44,15.296]
[1729518323194,0.6082023,163.48,163.46,21.4118]
[1729518324020,0.6082023,163.48,163.43,15.0856]
[1729518324320,6.1178,163.46,163.39,6.3443]
[1729518324492,6.1181,163.45,163.39,6.1201]
[1729518324916,0.6082023,163.48,163.37,15.0856]
[1729518325123,6.1203,163.39,163.33,15.3055]
[1729518325299,6.1203,163.39,163.33,21.4279]
[1729518325501,6.1197,163.41,163.34,6.122]
[1729518325808,6.12,163.4,163.34,6.122]
[1729518326203,6.8101023,163.48,163.31,15.0856]
[1729518326509,0.6082023,163.48,163.34,0.07941191]
[1729518326707,0.6082023,163.48,163.42,6.119]
[1729518326903,6.7252023,163.48,163.42,6.119]
[1729518327405,0.6082023,163.48,163.43,6.1185]
[1729518327710,0.6082023,163.48,163.44,6.1182]
[1729518327901,0.6082023,163.48,163.44,15.2956]
[1729518328107,0.6082023,163.48,163.42,15.0856]
[1729518328426,0.6082023,163.48,163.47,6.1173]
[1729518329129,6.114,163.66,163.48,6.2063]
[1729518329422,6.1121,163.61,163.54,6.1144]
[1729518329915,6.114,163.66,163.54,6.1144]
[1729518330127,6.1126,163.6,163.49,30.5829]
[1729518330327,6.1126,163.6,163.53,6.115]
[1729518330720,6.114,163.66,163.53,6.115]
[1729518330721,26.1129,163.59,163.53,6.115]
[1729518331028,20.0,163.59,163.53,6.1148]
[1729518331919,6.1125,163.6,163.45,6.0691]
[1729518331920,0.1,163.6,163.45,6.0691]
[1729518332238,0.1,163.55,163.42,15.0856]
[1729518332411,6.1177,163.46,163.4,15.2995]
[1729518332615,6.1184,163.44,163.38,6.1206]
[1729518332815,20.0,163.47,163.38,6.1206]
[1729518333012,29.894584,163.46,163.36,38.0904]
[1729518333320,20.0,163.45,163.36,38.0904]
[1729518333517,20.0,163.45,163.36,31.9691]
[1729518334133,6.1191,163.43,163.37,6.121]
[1729518334814,20.0,163.45,163.36,31.9691]
[1729518335010,43.776884,163.41,163.28,31.4907]
[1729518335236,43.776884,163.41,163.2,22.7256]
[1729518335434,0.1,163.39,163.24,6.1259]
[1729518335616,43.776884,163.36,163.24,15.3143]
[1729518336051,59.080484,163.36,163.24,15.3143]
[1729518336340,59.080484,163.36,163.24,21.44]
[1729518336520,6.1241,163.29,163.24,15.3143]
[1729518337123,20.0,163.34,163.2,22.80501191]
[1729518337311,20.0,163.36,163.21,30.6353]
[1729518337518,20.0,163.34,163.21,30.6353]
[1729518337831,20.0,163.34,163.25,15.3134]
[1729518338032,6.1222,163.34,163.22,6.1267]
[1729518338227,20.0,163.33,163.21,30.6353]
[1729518338717,6.1239,163.3,163.25,15.3137]
[1729518339238,6.1261,163.24,163.17,6.1284]
[1729518339418,20.0,163.27,163.13,15.3562]
[1729518339617,6.1265,163.23,163.16,21.4501]
[1729518339842,6.1265,163.23,163.17,6.1284]
[1729518340228,20.0,163.27,163.13,15.3562]
[1729518340417,6.126,163.24,163.18,6.1282]
[1729518341033,6.1251,163.26,163.19,6.1276]
[1729518341232,20.0,163.27,163.23,6.1262]
[1729518341442,20.0,163.27,163.24,6.1257]
[1729518341627,15.4042,163.36,163.23,6.1263]
[1729518341628,20.0,163.28,163.23,6.1263]
[1729518341819,6.1249,163.27,163.21,6.1267]
[1729518342019,20.0,163.32,163.21,6.1267]
[1729518342226,6.1254,163.26,163.2,6.1272]
[1729518342423,6.1236,163.3,163.18,6.1281]
[1729518342617,20.0,163.29,163.18,6.1281]
[1729518342830,20.0,163.29,163.13,15.3562]
[1729518342831,6.1258,163.25,163.14,15.3242]
[1729518343047,20.0,163.29,163.2,6.1273]
[1729518343249,20.0,163.29,163.13,15.43561191]
[1729518343432,6.1244,163.28,163.22,6.1263]
[1729518343631,20.0,163.27,163.22,6.1263]
[1729518344028,26.125,163.27,163.21,21.4444]
[1729518344253,6.1255,163.25,163.19,6.1277]
[1729518345155,6.1255,163.25,163.18,15.3205]
[1729518345156,6.1255,163.25,163.2,6.1274]
[1729518345753,43.776884,163.29,163.2,6.1274]
[1729518346051,6.1247,163.28,163.22,6.1264]
[1729518346234,6.1247,163.28,163.22,6.1266]
[1729518346235,6.1244,163.28,163.22,6.1266]
[1729518346751,20.0,163.27,163.22,6.1266]
[1729518347058,26.1249,163.27,163.22,5.9366]
[1729518347550,26.1249,163.27,163.2,15.3178]
[1729518347551,6.125,163.27,163.21,6.1269]
[1729518348135,6.1252,163.26,163.21,6.1269]
[1729518348541,6.1258,163.25,163.2,15.3178]
[1729518348957,6.1258,163.25,163.2,21.4451]
[1729518349942,6.1259,163.24,163.2,15.3178]
[1729518350229,6.1256,163.25,163.2,15.3178]
[1729518350459,6.1256,163.25,163.2,21.4452]
[1729518350950,20.0,163.3,163.16,15.3214]
[1729518350951,23.776884,163.29,163.16,15.3214]
[1729518351163,20.0,163.24,163.13,15.3562]
[1729518351338,6.1274,163.2,163.15,6.1292]
[1729518352651,0.1,163.24,163.11,6.1308]
[1729518352830,6.1294,163.15,163.1,21.4581]
[1729518353029,15.3176,163.21,163.07,16.2903023]
[1729518353238,20.0,163.2,163.12,15.3255]
[1729518353848,0.1,163.24,163.12,15.3255]
[1729518353849,20.0,163.22,163.12,15.3255]
[1729518354031,6.1286,163.17,163.12,21.4558]
[1729518354433,6.1292,163.16,163.11,6.1307]
[1729518355057,6.1305,163.12,163.08,15.3289]
[1729518355354,23.776884,163.19,163.07,22.4222023]
[1729518355355,0.1,163.18,163.07,0.6082023]
[1729518355532,6.1313,163.1,163.07,0.6082023]
[1729518355957,6.13,163.14,163.08,6.1319]
[1729518356134,20.1,163.18,163.07,15.9385023]
[1729518356461,6.1306,163.12,163.07,15.9385023]
[1729518356938,6.1308,163.11,163.07,15.9385023]
[1729518357140,6.1308,163.11,163.07,0.6082023]
[1729518357453,6.1313,163.1,163.07,0.6082023]
[1729518357855,20.0,163.1,163.07,0.6082023]
[1729518358949,15.3233,163.15,163.07,0.6082023]
[1729518358950,20.0,163.17,163.07,0.6082023]
[1729518359145,20.0,163.12,163.09,15.3289]
[1729518359339,6.4044,163.21,163.07,0.6082023]
[1729518359538,6.5044,163.21,163.02,0.07941191]
[1729518359746,6.5044,163.21,163.01,16.74025191]
[1729518360066,15.3195,163.19,163.01,16.74025191]
[1729518360273,6.1292,163.16,163.02,0.07941191]
[1729518360564,6.1293,163.15,163.09,6.1312]
[1729518360747,6.4044,163.21,163.13,6.13]
[1729518361069,6.4044,163.21,163.04,30.74611191]
[1729518361070,6.1285,163.17,163.12,21.4561]
[1729518362353,6.4044,163.21,163.1,6.1311]
[1729518362354,43.776884,163.2,163.1,6.1311]
[1729518362548,43.776884,163.2,163.04,30.6667]
[1729518362549,74.414284,163.2,163.04,30.6667]
[1729518362856,20.0,163.17,163.04,30.6667]
[1729518363046,6.1288,163.17,163.04,30.6667]
[1729518363250,6.1293,163.15,163.1,6.131]
[1729518364074,15.3211,163.18,163.09,21.4601]
[1729518364240,20.0,163.17,163.1,6.131]
[1729518364441,6.1297,163.14,163.09,21.46]
[1729518364653,20.0,163.17,163.06,30.6635]
[1729518364861,20.0,163.16,163.07,30.6616]
[1729518365055,6.1295,163.15,163.07,30.6616]
[1729518365241,6.1282,163.18,163.03,0.17941191]
[1729518365450,6.1282,163.18,163.13,6.1299]
[1729518365777,6.126,163.24,163.19,6.1277]
[1729518365977,6.126,163.24,163.08,0.07941191]
[1729518365978,6.6034,163.31,163.14,30.6469]
[1729518366263,6.1253,163.26,163.2,6.1271]
[1729518367146,6.1251,163.27,163.21,6.1267]
[1729518368153,6.1252,163.26,163.21,6.1267]
[1729518368470,23.776884,163.3,163.17,15.3214]
[1729518368471,20.0,163.28,163.17,15.3214]
[1729518368678,23.776884,163.3,163.15,16.4256]
[1729518368679,15.3139,163.25,163.15,16.4256]
[1729518368961,20.0,163.24,163.15,16.4256]
[1729518369139,6.1263,163.23,163.18,6.1281]
[1729518369566,6.1271,163.21,163.16,21.4509]
[1729518369746,6.1274,163.21,163.16,15.3223]
[1729518370058,6.1272,163.21,163.16,15.3223]
[1729518370266,20.0,163.26,163.11,6.0511]
[1729518370267,6.1283,163.18,163.12,15.3254]
[1729518370567,6.1283,163.18,163.13,6.1299]
[1729518370751,6.1289,163.16,163.12,15.3254]
[1729518371063,6.1286,163.17,163.12,21.4557]
[1729518371266,6.1286,163.17,163.12,21.4558]
[1729518371442,6.1291,163.16,163.12,15.3254]
[1729518371642,6.1296,163.15,163.1,16.2539]
[1729518371860,23.876884,163.23,163.1,16.2539]
[1729518372043,20.0,163.18,163.07,6.1321]
[1729518372366,6.1304,163.12,163.07,6.1323]
[1729518373255,6.1296,163.15,163.09,6.1314]
[1729518373455,57.2258,163.2,163.09,15.328]
[1729518373456,41.9072,163.2,163.09,15.328]
[1729518373749,41.9072,163.2,163.05,6.3146]
[1729518373750,6.1285,163.17,163.08,6.1316]
[1729518373942,6.13,163.14,163.05,6.3146]
[1729518374143,6.13,163.14,163.09,6.1312]
[1729518374751,6.1285,163.17,163.11,6.1305]
[1729518374951,6.1289,163.16,163.11,6.1306]
[1729518375152,20.0,163.18,163.06,30.6635]
[1729518375466,6.1299,163.14,163.08,15.3298]
[1729518375662,20.0,163.13,163.09,6.1314]
[1729518375861,6.1304,163.12,163.06,21.464]
[1729518376045,6.1289,163.16,163.11,6.1307]
[1729518376248,6.5886,163.2,163.05,6.3146]
[1729518376553,6.129,163.16,163.11,6.1305]
[1729518376764,15.3179,163.21,163.05,6.3146]
[1729518377071,6.06786772,163.19,163.14,6.1294]
[1729518377251,6.1282,163.18,163.13,21.4549]
[1729518377450,6.129,163.16,163.11,6.1304]
[1729518377846,6.1295,163.15,163.1,6.1311]
[1729518378473,6.1295,163.15,163.11,6.1307]
[1729518378675,15.3194,163.2,163.11,6.1307]
[1729518378676,6.129,163.16,163.11,6.1307]
[1729518378871,20.0,163.19,163.06,30.6635]
[1729518379050,20.0,163.17,163.06,30.6635]
[1729518379258,6.13,163.14,163.08,6.1316]
[1729518379460,6.1301,163.13,163.08,6.1316]
[1729518379655,35.3214,163.17,163.08,6.1316]
[1729518379853,6.1305,163.12,163.07,21.4626]
[1729518380363,35.3214,163.17,163.07,15.3304]
[1729518380684,35.3214,163.17,163.06,6.1327]
[1729518380685,6.1298,163.14,163.06,6.1327]
[1729518380988,6.1293,163.15,163.05,6.3146]
[1729518381181,19.94008332,163.17,163.05,6.3146]
[1729518381390,30.7316,163.23,163.05,6.3146]
[1729518381587,6.1296,163.15,163.06,30.6635]
[1729518381886,6.1296,163.15,163.1,6.131]
[1729518382185,6.1298,163.14,163.1,6.131]
[1729518382487,0.1,163.21,163.06,15.3314]
[1729518382786,43.776884,163.19,163.06,15.3314]
[1729518383170,0.1,163.18,163.04,15.0595]
[1729518383362,6.1314,163.1,163.05,6.1329]
[1729518383771,20.0,163.09,163.01,1.55844]
[1729518383996,0.1,163.14,162.97,16.6432]
[1729518383997,20.0,163.04,162.97,16.6432]
[1729518384291,6.1341,163.03,162.97,16.6432]
[1729518384500,23.776884,163.03,162.95,6.385]
[1729518384784,30.356984,163.04,162.92,15.5824]
[1729518384962,6.1365,162.96,162.92,15.5824]
[1729518385169,43.776884,163.01,162.91,0.6082023]
[1729518385369,6.1372,162.94,162.91,0.6082023]
[1729518385897,43.876884,163.01,162.91,0.6082023]
[1729518386186,6.1361,162.97,162.92,6.1379]
[1729518386372,20.0,162.97,162.91,15.9537023]
[1729518386562,30.0,163.02,162.91,0.6082023]
[1729518386763,20.0,162.99,162.94,6.1372]
[1729518387176,20.0,162.99,162.94,21.4801]
[1729518387382,0.1,163.12,162.97,15.3399]
[1729518387564,6.1343,163.02,162.97,15.3399]
[1729518387763,30.6514,163.13,162.97,15.3399]
[1729518387764,15.3289,163.09,162.97,15.3399]
[1729518388381,6.1339,163.03,162.97,21.4759]
[1729518389084,6.134,163.03,162.97,6.1359]
[1729518389287,0.1,163.11,162.93,30.6877]
[1729518389484,30.756,163.1,162.96,6.1363]
[1729518389992,6.1347,163.01,162.95,21.4786]
[1729518390163,20.0,163.06,162.95,21.4788]
[1729518390367,6.1357,162.98,162.91,0.6082023]
[1729518390566,6.31305889,162.95,162.91,0.6082023]
[1729518390761,20.0,162.94,162.91,0.6082023]
[1729518391072,6.1377,162.93,162.91,0.6082023]
[1729518391468,6.1376,162.93,162.91,0.6082023]
[1729518391984,6.1379,162.92,162.91,0.6082023]
[1729518392193,26.1372,162.94,162.91,0.6082023]
[1729518392366,20.0,162.94,162.91,0.6082023]
[1729518392768,6.1379,162.93,162.91,0.6082023]
[1729518393271,6.1379,162.92,162.91,0.6082023]
[1729518394262,26.1379,162.92,162.91,0.6082023]
[1729518405583,56.1379,162.92,162.91,0.6082023]
[1729518407581,6.1368,162.96,162.91,6.7462023]
[1729518407894,6.6493,163.02,162.91,15.9540023]
[1729518408106,6.1363,162.97,162.92,6.1376]
[1729518408293,6.6493,163.02,162.91,22.0922023]
[1729518408482,6.1367,162.96,162.91,22.0922023]
[1729518409083,6.6493,163.02,162.91,0.6082023]
[1729518409084,20.0,163.01,162.91,0.6082023]
[1729518409291,15.3383,162.99,162.91,0.6082023]
[1729518409483,6.1372,162.94,162.91,0.6082023]
[1729518409683,6.137,162.95,162.91,0.6082023]
[1729518409893,20.0,162.97,162.93,6.1375]
[1729518410085,20.0,162.96,162.92,21.4828]
[1729518410301,15.3357,163.02,162.91,0.6082023]
[1729518410510,6.1353,162.99,162.93,15.3438]
[1729518410687,6.1353,162.99,162.93,21.481]
[1729518410893,6.1358,162.98,162.94,6.1371]
[1729518411189,6.1358,162.98,162.93,21.4813]
[1729518411797,6.1367,162.96,162.92,16.5455]
[1729518412209,6.1367,162.96,162.92,22.6834]
[1729518412392,6.1372,162.94,162.92,16.5455]
[1729518412588,6.1372,162.94,162.91,7.1100023]
[1729518412589,6.1375,162.94,162.91,0.6082023]
[1729518413405,23.776884,163.01,162.91,15.9537023]
[1729518413707,6.1365,162.96,162.91,22.0919023]
[1729518413886,23.776884,163.01,162.91,15.9537023]
[1729518414094,15.338,163.0,162.91,0.6082023]
[1729518414494,6.1364,162.97,162.92,6.1379]
[1729518414902,15.338,163.0,162.91,0.6082023]
[1729518415213,6.1368,162.96,162.91,6.7465023]
[1729518416004,15.338,163.0,162.93,6.1375]
[1729518416311,15.338,163.0,162.92,15.3448]
[1729518416312,6.1339,163.03,162.97,15.3396]
[1729518416512,6.2279,163.11,162.92,30.6899]
[1729518416808,6.2279,163.11,162.99,6.135]
[1729518416994,30.0,163.0,162.98,21.4743]
[1729518417315,0.2,163.07,162.93,23.0636]
[1729518417498,6.1358,162.98,162.93,29.201]
[1729518418402,0.2,163.06,162.93,23.0636]
[1729518418590,0.2,163.06,162.91,22.0920023]
[1729518418591,0.1,163.04,162.91,0.6082023]
[1729518418798,20.0,163.02,162.91,0.6082023]
[1729518418995,6.1371,162.95,162.91,0.6082023]
[1729518419624,6.1375,162.94,162.91,0.6082023]
[1729518420108,20.0,162.98,162.91,0.6082023]
[1729518420307,20.0,162.96,162.91,0.6082023]
[1729518420506,6.1379,162.92,162.91,0.6082023]
[1729518420711,6.1376,162.93,162.91,0.6082023]
[1729518422009,20.0,162.96,162.91,6.7464023]
[1729518422320,35.3375,163.0,162.91,6.7464023]
[1729518422510,6.1369,162.95,162.91,6.7465023]
[1729518423417,6.1371,162.95,162.91,0.6082023]
[1729518423838,20.0,163.0,162.91,0.6082023]
[1729518424002,6.1369,162.95,162.91,6.7465023]
[1729518424705,6.136,162.98,162.92,6.1379]
[1729518425032,6.1345,163.02,162.96,6.1361]
[1729518425210,21.7347,163.06,162.96,6.1361]
[1729518425409,6.1347,163.01,162.96,6.1361]
[1729518425920,6.1338,163.03,162.92,21.4828]
[1729518426124,6.1333,163.05,162.92,0.17941191]
[1729518426313,15.3287,163.1,163.02,6.1341]
[1729518426522,6.1327,163.06,163.01,6.1345]
[1729518427203,6.1323,163.07,163.01,6.1344]
[1729518427433,6.132,163.08,163.02,6.1339]
[1729518427717,6.132,163.08,162.96,0.07941191]
[1729518427718,6.132,163.08,162.96,0.17941191]
[1729518427924,15.3254,163.13,162.97,0.17941191]
[1729518428097,6.1317,163.09,163.03,6.1336]
[1729518428301,43.59854573,163.16,162.98,6.1355]
[1729518428302,6.1336,163.04,162.98,6.1355]
[1729518428502,0.2,163.13,162.96,15.3411]
[1729518428698,0.2,163.11,162.96,15.3411]
[1729518428919,0.1,163.11,162.97,6.1358]
[1729518429220,6.1339,163.03,162.98,6.1355]
[1729518429433,20.0,163.1,162.95,6.5125]
[1729518429604,20.0,163.1,163.0,6.1346]
[1729518429924,20.0,163.1,162.95,6.5125]
[1729518429925,6.1336,163.04,162.99,15.3376]
[1729518430232,6.1346,163.01,162.96,21.4775]
[1729518430525,6.135,163.0,162.94,6.1372]
[1729518430725,6.1355,162.99,162.94,6.137]
[1729518431108,6.1351,163.0,162.94,21.4801]
[1729518431427,6.1351,163.0,162.95,6.1366]
[1729518431727,6.1351,163.0,162.94,21.4801]
[1729518431907,20.0,163.04,162.93,15.2192]
[1729518432420,6.1341,163.03,162.97,6.1357]
[1729518432727,20.0,163.04,162.94,30.6861]
[1729518432728,6.1335,163.04,162.94,30.6861]
[1729518433221,6.1332,163.05,162.95,21.4789]
[1729518433426,6.1329,163.06,162.94,0.17941191]
[1729518433926,6.1329,163.06,163.0,6.1346]
[1729518434113,6.1323,163.08,162.96,0.07941191]
[1729518434509,6.1323,163.08,162.96,0.17941191]
[1729518435222,6.1328,163.06,162.97,30.6804]
[1729518435528,6.132,163.08,163.03,6.1335]
[1729518436411,6.1342,163.02,162.98,15.3385]
[1729518436619,6.1348,163.01,162.94,15.343]
[1729518436830,6.1358,162.98,162.92,6.1379]
[1729518437011,6.1361,162.97,162.91,22.0919023]
[1729518437416,6.1379,162.93,162.91,0.6082023]
[1729518437625,6.1371,162.95,162.91,0.6082023]
[1729518438909,15.3384,162.99,162.91,0.6082023]
[1729518439214,20.0,162.98,162.92,6.1379]
[1729518439421,20.0,163.0,162.91,0.6082023]
[1729518439815,20.0,162.97,162.92,6.1378]
[1729518440014,20.0,162.97,162.92,6.1379]
[1729518440312,6.1361,162.97,162.92,6.1379]
[1729518440910,15.3364,163.01,162.91,15.9540023]
[1729518441110,52.1343,163.04,162.91,0.6082023]
[1729518441329,43.776884,163.03,162.91,0.6082023]
[1729518441533,6.1359,162.98,162.91,6.7464023]
[1729518441737,6.1362,162.97,162.91,6.7464023]
[1729518442234,6.1369,162.95,162.91,0.6082023]
[1729518443333,6.1375,162.94,162.91,0.6082023]
[1729518443631,6.1379,162.92,162.91,0.6082023]
[1729518444235,6.1375,162.94,162.91,0.6082023]
[1729518444410,6.1368,162.95,162.91,0.6082023]
[1729518445208,6.1371,162.95,162.91,0.6082023]
[1729518445609,6.136,162.98,162.91,0.6082023]
[1729518445925,6.40534573,163.07,162.91,0.6082023]
[1729518446127,4.41515504,163.05,163.01,6.1342]
[1729518446322,6.1323,163.07,163.01,6.1343]
[1729518446521,6.1323,163.07,162.95,0.17941191]
[1729518446522,6.3695,163.11,163.03,6.1337]
[1729518446736,6.1322,163.08,163.02,6.1341]
[1729518446914,6.1318,163.09,163.03,6.1335]
[1729518447931,6.1319,163.08,163.03,6.1335]
[1729518448119,6.1312,163.1,163.05,6.1327]
[1729518449339,15.3242,163.14,163.03,6.1336]
[1729518449636,24.41768401,163.13,162.98,15.3385]
[1729518449948,6.1334,163.05,162.99,6.1353]
[1729518450136,20.0,163.08,162.98,15.3385]
[1729518450621,6.1331,163.05,162.99,6.1353]
[1729518450821,6.1346,163.01,162.95,21.4786]
[1729518451026,15.3308,163.07,162.95,21.4786]
[1729518451027,15.3308,163.07,162.96,6.1363]
[1729518451216,15.3308,163.07,162.94,21.8365]
[1729518451217,6.1336,163.04,162.97,15.3402]
[1729518451419,6.1336,163.04,162.98,6.1353]
[1729518451741,6.1336,163.04,162.98,6.1356]
[1729518452040,6.1336,163.04,162.94,21.8365]
[1729518452342,6.1326,163.07,163.01,6.1342]
[1729518452520,6.1328,163.06,163.01,6.1342]
[1729518452716,6.1337,163.04,162.99,6.1351]
[1729518452922,6.1319,163.08,162.98,6.1356]
[1729518453223,6.1341,163.03,162.98,6.1356]
[1729518453418,6.1323,163.07,162.97,21.476]
[1729518453646,6.1346,163.01,162.97,15.34]
[1729518453828,6.1346,163.01,162.96,6.1364]
[1729518454941,6.133,163.05,162.95,6.1368]
[1729518455144,6.1344,163.02,162.96,6.1363]
[1729518455554,20.0,163.12,162.94,22.01591191]
[1729518455762,0.1,163.14,163.01,6.1345]
[1729518455763,20.0,163.1,163.01,6.1345]
[1729518455944,19.75131056,163.09,162.99,6.1353]
[1729518456137,6.1331,163.05,162.95,30.6842]
[1729518456338,20.0,163.06,163.01,6.1342]
[1729518456639,6.1323,163.07,162.95,30.6842]
[1729518456640,6.1323,163.07,163.02,6.134]
[1729518457142,30.6485,163.14,162.98,6.1353]
[1729518457356,0.1,163.12,162.98,15.3393]
[1729518457534,15.3308,163.07,162.98,15.3393]
[1729518457735,6.1345,163.02,162.98,15.3393]
[1729518458564,20.0,163.06,162.95,30.6842]
[1729518459080,6.1335,163.04,162.99,6.135]
[1729518459442,20.0,163.09,163.0,6.1346]
[1729518459763,20.0,163.07,163.0,6.1346]
[1729518459964,6.1341,163.03,162.98,6.1356]
[1729518460141,6.1334,163.04,162.99,6.135]
[1729518460542,20.0,163.09,162.95,30.6842]
[1729518460543,6.1331,163.05,163.0,6.1346]
[1729518460759,6.1335,163.04,163.0,6.1346]
[1729518461359,20.0,163.09,163.0,6.1346]
[1729518461570,6.1331,163.05,163.0,6.1346]
[1729518462265,6.1331,163.05,163.01,6.1345]
[1729518462775,6.1327,163.06,163.01,6.1345]
[1729518462955,20.0,163.09,163.05,6.133]
[1729518462956,6.1318,163.09,163.05,6.133]
[1729518463142,6.1318,163.09,162.96,20.0]
[1729518463143,15.3233,163.15,163.0,15.5799]
[1729518463345,6.1312,163.1,163.04,15.3329]
[1729518463975,6.1315,163.09,163.05,6.133]
[1729518464272,6.1312,163.1,163.05,6.133]
[1729518464447,6.1316,163.09,163.05,6.133]
[1729518464967,6.1316,163.09,163.01,30.6729]
[1729518464968,15.3242,163.14,163.01,30.6729]
[1729518465272,6.1316,163.09,163.03,6.1338]
[1729518465569,6.1316,163.09,163.02,30.671]
[1729518465570,6.1316,163.09,163.05,21.4656]
[1729518465767,20.0,163.13,163.05,21.4656]
[1729518466270,6.1317,163.09,163.05,21.4656]
[1729518466674,20.0,163.13,163.01,30.6729]
[1729518466965,6.1316,163.09,163.04,6.1331]
[1729518467862,50.6409,163.19,163.05,6.6599]
[1729518468067,6.1299,163.14,163.09,6.1315]
[1729518468371,17.8697,163.2,163.11,6.1304]
[1729518468372,6.4977,163.2,163.11,6.1304]
[1729518468677,6.1292,163.16,163.11,6.1307]
[1729518469055,26.6865,163.25,163.11,15.8259]
[1729518469358,26.81689648,163.24,163.14,15.3241]
[1729518469548,11.49724357,163.23,163.11,15.8259]
[1729518469745,6.127,163.22,163.17,6.1282]
[1729518469960,6.127,163.21,163.17,6.1282]
[1729518470175,6.5401,163.26,163.14,6.1296]
[1729518470350,0.1,163.23,163.11,15.8259]
[1729518470545,4.41730765,163.22,163.09,15.3281]
[1729518470859,6.1286,163.17,163.11,6.1304]
[1729518471047,15.316,163.23,163.14,6.1295]
[1729518471247,6.1259,163.24,163.19,6.1274]
[1729518471447,16.6943195,163.35,163.15,6.1087]
[1729518471448,15.4094,163.3,163.18,15.3197]
[1729518471667,6.1271,163.21,163.16,6.1288]
[1729518472569,23.776884,163.24,163.12,6.1304]
[1729518472772,6.1292,163.16,163.1,6.4265]
[1729518472949,15.3158,163.23,163.12,6.1304]
[1729518473271,20.0,163.21,163.12,6.1304]
[1729518473946,6.1286,163.17,163.12,6.1304]
[1729518474349,6.1302,163.13,163.09,16.3597]
[1729518474754,6.1302,163.13,163.09,22.4912]
[1729518475153,6.1297,163.14,163.09,22.4912]
[1729518475751,20.0,163.17,163.09,16.3597]
[1729518475970,20.0,163.16,163.09,22.4912]
[1729518476361,20.0,163.16,163.09,16.3597]
[1729518476559,20.0,163.14,163.06,6.1819]
[1729518476748,20.0,163.16,163.09,15.3289]
[1729518476952,23.776884,163.24,163.07,0.07941191]
[1729518477256,15.3158,163.23,163.07,0.17941191]
[1729518477460,6.1288,163.17,163.1,15.3271]
[1729518477649,6.1282,163.18,163.1,21.4581]
[1729518478885,6.1281,163.19,163.11,6.1305]
[1729518479661,15.3134,163.26,163.14,6.1296]